bitfinex-derivatives/quotes_SOLF0:USTF0_20250329
["timestamp","ask_amount","ask_price","bid_price","bid_amount"]
[1743216927704,7.8168,127.99,127.98,30.0907]
[1743216928007,7.8168,127.99,127.98,30.0707]
[1743216928509,7.86610224,128.0,127.98,30.0707]
[1743216928706,8.88197464,128.0,127.98,2.1307]
[1743216928906,7.8174,127.98,127.97,27.99574684]
[1743216930202,7.8174,127.98,127.97,0.05574684]
[1743216930505,7.8174,127.98,127.97,27.99574684]
[1743216933112,8.88197464,128.0,127.97,27.99574684]
[1743216933313,8.8322724,127.99,127.97,27.99574684]
[1743216934811,7.8174,127.98,127.97,27.99574684]
[1743216936712,16.6522724,127.98,127.82,85.99661329]
[1743216936922,8.8322724,127.94,127.89,8.8322724]
[1743216937110,8.8322724,127.94,127.9,28.08]
[1743216937311,7.8217,127.92,127.9,28.08]
[1743216937510,8.8322724,127.93,127.88,8.8322724]
[1743216937710,8.8322724,127.93,127.89,28.08]
[1743216937913,7.8223,127.9,127.89,0.05951849]
[1743216938711,0.05661579,127.92,127.89,0.05951849]
[1743216938920,0.05661579,127.92,127.89,8.89179089]
[1743216939323,7.87811579,127.92,127.89,8.89179089]
[1743216939711,7.8217,127.91,127.89,8.89179089]
[1743216942222,0.05661579,127.92,127.9,8.8322724]
[1743216942414,8.8322724,127.98,127.91,36.9122724]
[1743216942615,8.8322724,127.98,127.93,8.8322724]
[1743216942816,7.819,127.96,127.94,28.1]
[1743216943621,7.8193,127.95,127.94,28.15573757]
[1743216947425,0.04965628,127.96,127.94,28.15573757]
[1743216948118,8.8322724,127.95,127.94,28.15573757]
[1743216948823,16.6515724,127.95,127.94,28.15573757]
[1743216949326,16.6515724,127.95,127.94,0.05573757]
[1743216949916,7.8223,127.9,127.89,257.86]
[1743216950117,7.8223,127.9,127.89,285.92]
[1743216950611,8.8322724,127.93,127.89,285.92]
[1743216950813,8.8322724,127.94,127.89,294.7522724]
[1743216951019,7.8211,127.92,127.9,0.05920404]
[1743216952024,7.87400816,127.93,127.9,0.05920404]
[1743216953323,7.8211,127.92,127.9,0.05920404]
[1743216953524,8.8322724,127.92,127.9,0.05920404]
[1743216954627,7.8217,127.91,127.9,0.05920404]
[1743216957419,7.8217,127.91,127.9,28.05920404]
[1743216958225,16.6539724,127.91,127.9,0.05920404]
[1743216959318,16.6539724,127.91,127.9,4.04e-06]
[1743216964027,16.6539724,127.91,127.83,257.92]
[1743216964028,7.8255,127.85,127.81,8.8322724]
[1743216964224,8.8322724,127.84,127.77,257.96]
[1743216964529,8.8322724,127.83,127.78,41.4160724]
[1743216964831,8.8322724,127.85,127.8,8.8322724]
[1743216965131,8.8322724,127.84,127.81,28.46]
[1743216965322,8.8322724,127.83,127.81,28.51102283]
[1743216965828,8.8322724,127.83,127.81,28.53102283]
[1743216966027,8.88713161,127.84,127.81,28.53102283]
[1743216966229,8.8322724,127.83,127.81,0.05102283]
[1743216966925,8.88713161,127.84,127.81,0.05102283]
[1743216967741,0.05485921,127.84,127.81,8.88329523]
[1743216967934,0.05485921,127.84,127.81,0.05102283]
[1743216968621,7.827,127.83,127.81,0.05102283]
[1743216969023,0.05485921,127.84,127.81,0.05102283]
[1743216969626,0.05485921,127.84,127.81,8.88329523]
[1743216969824,7.88105921,127.84,127.81,8.88329523]
[1743216970226,0.05485921,127.84,127.81,8.88329523]
[1743216970422,0.05485921,127.84,127.81,0.05102283]
[1743216970626,7.8272,127.82,127.81,0.05102283]
[1743216970831,0.05485921,127.84,127.81,0.05102283]
[1743216971533,7.8269,127.83,127.82,28.48]
[1743216972937,8.8322724,127.88,127.82,37.3122724]
[1743216973128,8.8322724,127.88,127.83,8.8322724]
[1743216973328,8.8322724,127.91,127.83,2.0927]
[1743216973640,8.8322724,127.92,127.87,8.8322724]
[1743216973840,7.822,127.91,127.88,28.46]
[1743216974038,8.8322724,127.92,127.88,28.46]
[1743216974339,0.05778593,127.91,127.88,37.34175325]
[1743216974538,0.05778593,127.91,127.88,45.16505325]
[1743216974737,8.89005833,127.91,127.88,28.50948085]
[1743216975038,0.05778593,127.91,127.88,28.50948085]
[1743216975247,0.05778593,127.91,127.88,37.34175325]
[1743216975632,0.05778593,127.91,127.89,8.8322724]
[1743216975839,0.05778593,127.91,127.9,7.8223]
[1743216976038,0.05778593,127.91,127.89,8.8322724]
[1743216976833,0.05778593,127.91,127.88,28.50948085]
[1743216977238,0.05778593,127.91,127.88,36.33298085]
[1743216977440,7.8201,127.94,127.88,28.50948085]
[1743216977738,7.8201,127.94,127.89,2.0977]
[1743216978137,7.8194,127.95,127.89,2.0977]
[1743216978332,0.05477193,127.93,127.89,15.96099081]
[1743216978531,0.05477193,127.93,127.91,0.05447643]
[1743216978736,0.05477193,127.93,127.92,28.42]
[1743216980731,7.87527193,127.93,127.92,28.42]
[1743216982542,0.05477193,127.93,127.92,28.42]
[1743216983243,7.87527193,127.93,127.92,28.42]
[1743216987645,7.8211,127.92,127.91,28.43447643]
[1743216989747,7.8211,127.92,127.91,0.05447643]
[1743216993753,7.8229,127.89,127.88,28.5]
[1743216993951,13.86329081,127.91,127.85,258.06]
[1743216994349,13.86329081,127.91,127.86,28.5]
[1743216994756,7.8241,127.87,127.86,28.5]
[1743216996556,7.8248,127.86,127.85,258.11575286]
[1743216996758,7.8248,127.86,127.85,286.57575286]
[1743216997159,7.8248,127.86,127.85,258.11575286]
[1743216997358,7.8248,127.86,127.85,286.57575286]
[1743217000761,7.8248,127.86,127.85,258.11575286]
[1743217001062,7.8248,127.86,127.85,286.51575286]
[1743217001464,7.8248,127.86,127.85,28.45575286]
[1743217001664,16.70596125,127.86,127.85,28.45575286]
[1743217001968,16.70596125,127.86,127.85,0.05575286]
[1743217003069,16.70596125,127.86,127.85,5.286e-05]
[1743217003867,7.8272,127.82,127.81,28.4]
[1743217004366,8.88116125,127.83,127.81,28.44]
[1743217004764,8.93668852,127.83,127.81,28.49532856]
[1743217005167,7.8272,127.82,127.81,28.49532856]
[1743217005372,16.70836125,127.82,127.81,0.05532856]
[1743217008073,8.88116125,127.82,127.71,258.1]
[1743217008266,8.88116125,127.79,127.73,8.88116125]
[1743217008469,8.88116125,127.78,127.73,8.88116125]
[1743217009069,8.88116125,127.77,127.71,260.1789]
[1743217009272,8.88116125,127.75,127.74,0.05035464]
[1743217009974,16.71266125,127.75,127.74,0.05035464]
[1743217010880,7.8315,127.75,127.74,0.05035464]
[1743217011281,13.90264099,127.75,127.68,28.46]
[1743217011672,13.90264099,127.75,127.66,13.90264099]
[1743217011872,13.90264099,127.75,127.67,28.46]
[1743217012271,7.8349,127.7,127.67,28.46]
[1743217012669,7.8349,127.7,127.67,28.51027514]
[1743217012876,0.05800047,127.72,127.68,13.90264099]
[1743217013077,15.90984099,127.77,127.68,21.73814099]
[1743217013482,13.90264099,127.77,127.68,13.90264099]
[1743217013682,13.90264099,127.77,127.68,21.73824099]
[1743217013874,7.8327,127.73,127.68,13.90264099]
[1743217014185,0.05679176,127.72,127.69,0.05784531]
[1743217014377,0.05679176,127.72,127.7,28.44]
[1743217014579,0.05679176,127.72,127.69,28.49777262]
[1743217015885,7.8343,127.71,127.69,28.49777262]
[1743217016083,0.05679176,127.72,127.69,28.49777262]
[1743217016390,0.05679176,127.72,127.53,85.99661329]
[1743217016391,13.90264099,127.7,127.53,85.99661329]
[1743217016579,13.90264099,127.64,127.55,44.30255977]
[1743217016883,7.8368,127.67,127.59,13.90264099]
[1743217017081,13.90264099,127.68,127.6,29.0]
[1743217017686,0.05305947,127.65,127.63,0.05300231]
[1743217017887,0.05305947,127.65,127.64,29.0]
[1743217018292,0.05305947,127.65,127.63,0.05300231]
[1743217018684,13.90264099,127.64,127.58,258.26]
[1743217018985,13.90264099,127.64,127.59,29.02]
[1743217019179,13.90264099,127.64,127.58,258.26]
[1743217019385,13.90264099,127.64,127.59,29.02]
[1743217019982,0.05271649,127.63,127.59,29.02]
[1743217020388,7.84,127.62,127.59,29.02]
[1743217020788,0.05271649,127.63,127.59,29.02]
[1743217021282,7.838,127.65,127.59,29.02]
[1743217021589,7.8383,127.64,127.6,7.8403]
[1743217021985,7.8383,127.64,127.59,36.8611]
[1743217022189,13.90264099,127.66,127.59,29.02]
[1743217022382,0.05613239,127.63,127.6,0.05759757]
[1743217022786,7.8405,127.61,127.6,0.05759757]
[1743217023487,7.842,127.58,127.53,7.8448]
[1743217023678,13.90264099,127.59,127.51,258.38]
[1743217023881,45.21704099,127.62,127.52,29.24]
[1743217024081,7.845,127.53,127.52,29.24]
[1743217024278,13.90264099,127.53,127.39,85.99661329]
[1743217024486,13.90264099,127.47,127.4,1.44108707]
[1743217024685,13.95537838,127.47,127.4,1.44108707]
[1743217024885,22.35526233,127.46,127.4,1.44108707]
[1743217025185,0.0551469,127.44,127.39,82.22191329]
[1743217025382,22.35526233,127.41,127.37,199.77590068]
[1743217025583,22.35526233,127.38,127.37,54.99669567]
[1743217025784,30.20946233,127.38,127.37,54.99669567]
[1743217026282,38.06946233,127.38,127.37,12.40362699]
[1743217026490,30.21526233,127.38,127.37,12.40362699]
[1743217026680,22.35526233,127.38,127.37,12.40362699]
[1743217026888,0.06012436,127.39,127.37,12.40362699]
[1743217027277,31.36,127.38,127.37,12.40362699]
[1743217027478,53.71526233,127.38,127.36,394.39382897]
[1743217027680,447.93052466,127.38,127.33,342.73068817]
[1743217027985,44.71052466,127.34,127.19,128.19489737]
[1743217028188,44.71052466,127.34,127.19,143.89489737]
[1743217028189,22.35526233,127.25,127.19,143.89489737]
[1743217028395,22.35526233,127.25,127.19,128.19489737]
[1743217028590,0.05844792,127.23,127.19,128.19489737]
[1743217028995,0.05844792,127.23,127.22,94.22]
[1743217029197,36.46298521,127.29,127.22,126.46]
[1743217029398,36.46298521,127.32,127.24,15.7]
[1743217029893,36.46298521,127.32,127.2,7.8649]
[1743217030095,36.46298521,127.32,127.24,15.7]
[1743217030293,0.05019519,127.27,127.25,0.05600821]
[1743217030690,153.55351456,127.28,127.25,0.05600821]
[1743217030999,0.06005233,127.27,127.25,0.05600821]
[1743217031398,36.46298521,127.39,127.27,94.22]
[1743217031589,36.46298521,127.39,127.31,15.7]
[1743217031789,36.46298521,127.39,127.32,48.04]
[1743217031985,364.0,127.4,127.32,21.7187469]
[1743217032196,364.0,127.4,127.34,15.7]
[1743217032492,43.84296162,127.38,127.37,78.52]
[1743217032690,43.84296162,127.38,127.37,110.88]
[1743217032691,43.89577946,127.38,127.37,110.88]
[1743217032889,364.0,127.44,127.37,110.88]
[1743217033089,364.0,127.44,127.38,78.52]
[1743217033496,129.00035056,127.39,127.37,68.82298521]
[1743217033697,129.00035056,127.39,127.38,32.32]
[1743217033891,122.41555056,127.39,127.38,110.84]
[1743217034090,2.1103,127.49,127.38,110.84]
[1743217034292,2.1103,127.49,127.43,78.52]
[1743217034492,2.1103,127.49,127.44,78.52]
[1743217034688,2.1103,127.49,127.43,32.32]
[1743217034886,2.1103,127.49,127.46,78.52]
[1743217035090,2.1103,127.49,127.46,110.84]
[1743217035295,532.93222208,127.48,127.46,110.89428638]
[1743217035594,532.93222208,127.48,127.46,0.05428638]
[1743217035991,532.93222208,127.48,127.4,295.36298521]
[1743217036188,532.93222208,127.48,127.42,78.52]
[1743217036386,532.93222208,127.48,127.41,32.3]
[1743217036596,569.39520729,127.48,127.41,17.12]
[1743217036798,36.46298521,127.46,127.41,10.5376]
[1743217037097,7.90822049,127.45,127.42,0.05631053]
[1743217037497,7.90822049,127.45,127.41,10.5376]
[1743217038095,7.8507,127.44,127.41,10.5376]
[1743217038302,32.28,127.44,127.41,10.5376]
[1743217038601,7.8536,127.39,127.32,32.28]
[1743217038796,7.8536,127.39,127.33,78.52]
[1743217038994,32.28,127.4,127.33,78.52]
[1743217039890,32.28,127.4,127.35,0.05071954]
[1743217039891,0.05260433,127.38,127.35,0.05071954]
[1743217040092,43.85165376,127.38,127.35,0.05071954]
[1743217040295,43.85165376,127.38,127.37,78.52]
[1743217040900,43.85165376,127.38,127.36,32.24]
[1743217041095,40.55955376,127.38,127.37,78.52]
[1743217041595,40.55955376,127.38,127.36,1.20299235]
[1743217042301,40.61227075,127.38,127.36,1.25296965]
[1743217042503,150.16449694,127.38,127.36,1.25296965]
[1743217042894,150.16449694,127.38,127.36,32.2]
[1743217043595,150.16449694,127.38,127.33,32.18]
[1743217043893,40.55955376,127.37,127.33,32.18]
[1743217045204,40.55955376,127.37,127.31,2.0576]
[1743217045399,136.07088048,127.36,127.32,32.14]
[1743217045600,0.04982907,127.35,127.32,32.14]
[1743217047995,106.31450448,127.34,127.32,32.14]
[1743217048398,106.31450448,127.34,127.3,290.9]
[1743217049093,106.31450448,127.33,127.3,290.9]
[1743217049899,106.31450448,127.33,127.3,327.36298521]
[1743217050396,1725.89755418,127.31,127.3,290.9]
[1743217051900,87.65582672,127.36,127.3,335.22298521]
[1743217052200,79.80192672,127.36,127.35,36.46298521]
[1743217052505,109.55222619,127.38,127.35,68.36298521]
[1743217053101,109.6017424,127.38,127.35,68.42014121]
[1743217053603,109.6017424,127.38,127.35,31.957156]
[1743217053996,109.6017424,127.38,127.35,68.42014121]
[1743217054197,109.6017424,127.38,127.35,31.957156]
[1743217054400,0.04951621,127.38,127.36,745.06949152]
[1743217056499,0.04951621,127.38,127.37,162.31568402]
[1743217056698,7.90371621,127.38,127.37,162.31568402]
[1743217057604,0.04951621,127.38,127.37,162.31568402]
[1743217058305,7.90371621,127.38,127.37,162.31568402]
[1743217059104,2.1839,127.45,127.37,332.08715069]
[1743217059303,22.37392587,127.42,127.37,332.08715069]
[1743217059904,7.8542,127.38,127.37,332.08715069]
[1743217060307,7.8542,127.38,127.37,27.28599507]
[1743217062203,7.8549,127.37,127.36,0.05497001]
[1743217062808,7.8549,127.37,127.35,30.90997001]
[1743217063209,7.8555,127.36,127.35,30.90997001]
[1743217064514,0.05222795,127.39,127.35,30.90997001]
[1743217064914,7.8547,127.38,127.35,30.90997001]
[1743217065113,0.05222795,127.39,127.35,30.90997001]
[1743217065615,7.8547,127.38,127.35,30.90997001]
[1743217066510,7.8549,127.37,127.35,30.90997001]
[1743217066717,0.05222795,127.39,127.35,30.90997001]
[1743217067318,7.8552,127.37,127.35,30.90997001]
[1743217068217,7.8555,127.36,127.35,30.90997001]
[1743217069325,383.64004661,127.36,127.35,4.6155618]
[1743217069716,7.8561,127.35,127.34,31.418616]
[1743217069921,7.8561,127.35,127.34,0.058616]
[1743217070323,375.84324126,127.36,127.34,0.058616]
[1743217071425,375.84324126,127.36,127.33,24.49442078]
[1743217071625,871.70415065,127.35,127.33,24.49442078]
[1743217072927,838.84137864,127.35,127.33,24.49442078]
[1743217074426,838.84137864,127.35,127.34,22.37392587]
[1743217074826,573.66028007,127.35,127.34,30.23392587]
[1743217075129,258.45121174,127.35,127.34,30.23392587]
[1743217075325,207.61074159,127.35,127.34,30.23392587]
[1743217077633,207.61074159,127.35,127.32,428.16296319]
[1743217078734,215.46704159,127.35,127.32,428.16296319]
[1743217079736,7.8563,127.35,127.32,428.16296319]
[1743217079931,7.8568,127.34,127.32,428.16296319]
[1743217080335,0.05869465,127.36,127.32,428.16296319]
[1743217080723,0.05869465,127.36,127.33,31.32]
[1743217083438,0.05869465,127.36,127.32,428.16296319]
[1743217083632,0.05869465,127.36,127.33,31.26]
[1743217083938,7.8567,127.34,127.33,31.26]
[1743217085432,0.05869465,127.36,127.33,31.26]
[1743217085629,0.05869465,127.36,127.32,428.16296319]
[1743217085630,22.43262052,127.36,127.32,428.16296319]
[1743217086030,2.0367,127.35,127.32,428.16296319]
[1743217086239,7.8573,127.33,127.32,428.16296319]
[1743217086735,7.8573,127.33,127.32,424.86966319]
[1743217086932,7.8573,127.33,127.32,421.57636319]
[1743217087530,7.8585,127.32,127.29,31.2]
[1743217087935,0.0537105,127.32,127.29,31.2]
[1743217088738,7.8586,127.31,127.3,112.89441486]
[1743217090834,7.8592,127.3,127.29,130.74769322]
[1743217091034,53.49392587,127.3,127.26,272.39102754]
[1743217091241,22.37392587,127.27,127.26,173.99205886]
[1743217091441,61.39492587,127.27,127.26,26.95551952]
[1743217091641,69.25492587,127.27,127.26,26.95551952]
[1743217092143,69.25492587,127.27,127.26,1.952e-05]
[1743217092339,61.39392587,127.27,127.18,31.14]
[1743217092538,22.37392587,127.25,127.16,4.0437]
[1743217092733,0.0513686,127.23,127.17,31.12]
[1743217093144,0.0513686,127.23,127.18,22.37392587]
[1743217093345,53.49392587,127.31,127.2,22.37392587]
[1743217093538,53.49392587,127.31,127.21,31.12]
[1743217093739,7.8622,127.26,127.21,31.12]
[1743217094441,0.05635921,127.25,127.22,0.0580997]
[1743217095346,7.91885921,127.25,127.22,0.0580997]
[1743217097248,0.05635921,127.25,127.22,31.0980997]
[1743217097643,7.91875921,127.25,127.22,31.0980997]
[1743217097948,0.05635921,127.25,127.22,31.0980997]
[1743217098447,7.91885921,127.25,127.22,31.0980997]
[1743217099144,0.05635921,127.25,127.22,0.0580997]
[1743217099938,7.8635,127.23,127.22,0.0580997]
[1743217102647,7.863,127.24,127.22,0.0580997]
[1743217102842,0.05635921,127.25,127.22,0.0580997]
[1743217102843,0.05635921,127.25,127.23,30.9]
[1743217103553,0.05635921,127.25,127.23,33.0859]
[1743217104142,7.91865921,127.25,127.23,33.0859]
[1743217104554,0.05635921,127.25,127.23,33.0859]
[1743217106846,22.37392587,127.33,127.23,55.45982587]
[1743217107047,22.37392587,127.35,127.23,55.45982587]
[1743217107250,7.8594,127.3,127.25,22.37392587]
[1743217107453,31.3284347,127.32,127.26,30.84]
[1743217107851,7.8599,127.29,127.26,30.84]
[1743217108158,7.8599,127.29,127.28,0.05575197]
[1743217108349,7.8598,127.29,127.28,0.05575197]
[1743217108548,7.8598,127.29,127.16,364.0]
[1743217108549,7.86,127.29,127.16,364.0]
[1743217108849,22.37392587,127.28,127.17,57.57932587]
[1743217109054,7.8649,127.21,127.17,57.57932587]
[1743217109250,22.37392587,127.28,127.17,57.57932587]
[1743217109645,7.92315439,127.24,127.21,0.05870694]
[1743217109948,0.05975439,127.24,127.22,30.9]
[1743217110148,7.8641,127.23,127.22,30.9]
[1743217110650,7.92285439,127.24,127.22,30.9]
[1743217110848,7.92285439,127.24,127.22,4.57777076]
[1743217111855,0.05975439,127.24,127.22,4.57777076]
[1743217112550,62.30184153,127.27,127.23,30.84]
[1743217112752,62.30184153,127.27,127.23,53.21392587]
[1743217113253,10.42568814,127.27,127.23,22.37392587]
[1743217113655,0.05881274,127.26,127.24,31.01565708]
[1743217114049,7.92051274,127.26,127.24,31.01565708]
[1743217114357,0.05881274,127.26,127.24,31.01565708]
[1743217116354,0.05881274,127.26,127.25,30.88]
[1743217116553,0.05881274,127.26,127.24,0.05565708]
[1743217116759,7.8623,127.25,127.24,0.05565708]
[1743217121660,104.4329331,127.25,127.24,0.05565708]
[1743217121962,96.5706331,127.25,127.24,0.05565708]
[1743217123059,41.30527244,127.25,127.24,0.05565708]
[1743217123770,49.16757244,127.25,127.24,0.05565708]
[1743217124666,41.30527244,127.25,127.24,0.05565708]
[1743217126467,49.16757244,127.25,127.24,0.05565708]
[1743217126670,41.30527244,127.25,127.24,0.05565708]
[1743217127964,31.38724744,127.26,127.24,7.91565708]
[1743217128265,83.54249255,127.27,127.25,30.6]
[1743217129264,91.45931093,127.27,127.25,30.6]
[1743217129766,7.91681838,127.27,127.25,30.6]
[1743217131264,0.05541838,127.27,127.25,30.6]
[1743217132169,7.91641838,127.27,127.25,30.6]
[1743217132467,0.05541838,127.27,127.25,30.6]
[1743217132669,7.91651838,127.27,127.25,30.6]
[1743217133169,0.05541838,127.27,127.25,30.6]
[1743217134570,29.71717519,127.3,127.26,22.37392587]
[1743217134772,29.71717519,127.3,127.27,2.1304]
[1743217134968,29.71717519,127.3,127.28,44.45152315]
[1743217135369,37.57667519,127.3,127.28,30.46]
[1743217135565,37.63530696,127.3,127.28,30.52032376]
[1743217135864,29.77580696,127.3,127.28,30.52032376]
[1743217136269,7.8598,127.29,127.28,30.52032376]
[1743217136568,7.8598,127.29,127.28,0.06032376]
[1743217137569,13.99152315,127.29,127.22,289.68]
[1743217137867,13.99152315,127.29,127.22,259.26]
[1743217138064,7.8646,127.22,127.2,30.48]
[1743217138267,13.99152315,127.26,127.2,30.48]
[1743217138464,7.8646,127.22,127.2,30.48]
[1743217138975,0.05982002,127.24,127.2,30.53708454]
[1743217139275,22.42536411,127.22,127.16,259.22]
[1743217139475,2.1367,127.21,127.16,259.22]
[1743217139679,7.8672,127.17,127.16,259.22]
[1743217140069,2.1367,127.21,127.15,30.5]
[1743217140371,22.42536411,127.16,127.04,646.78382268]
[1743217140576,22.42536411,127.16,127.05,34.652]
[1743217140772,7.8715,127.1,127.09,0.05975881]
[1743217142379,0.05746272,127.11,127.09,30.63975881]
[1743217143171,83.54249255,127.18,127.09,30.63975881]
[1743217143478,83.54249255,127.18,127.1,22.42536411]
[1743217143981,7.8679,127.16,127.1,22.42536411]
[1743217144176,83.54249255,127.18,127.1,22.42536411]
[1743217144374,0.05292874,127.14,127.12,0.05850608]
[1743217144575,7.8673,127.17,127.13,30.58]
[1743217145575,0.0558331,127.16,127.14,0.05684939]
[1743217149579,0.0558331,127.16,127.1,30.5]
[1743217149776,2.1678,127.17,127.1,30.5]
[1743217149971,7.8709,127.11,127.1,30.5]
[1743217150279,22.42536411,127.16,127.09,30.54]
[1743217150679,0.05355423,127.14,127.11,0.05841171]
[1743217151586,7.8703,127.12,127.11,0.05841171]
[1743217152585,7.8712,127.11,127.09,4.20976201]
[1743217152788,71.83448859,127.12,127.09,4.20976201]
[1743217152983,37.72237927,127.12,127.09,4.20976201]
[1743217153488,60.14774338,127.12,127.01,22.42536411]
[1743217153681,7.8745,127.06,127.04,31.71845857]
[1743217154082,7.92718036,127.06,127.04,31.77538979]
[1743217154280,7.8746,127.05,127.04,31.81538979]
[1743217155984,7.8746,127.05,127.04,1.17538979]
[1743217156488,214.13779837,127.05,127.02,30.6]
[1743217157089,222.01249837,127.05,127.03,30.58]
[1743217157387,263.78374465,127.05,127.03,30.58]
[1743217157586,263.78374465,127.05,127.03,28.28478619]
[1743217157788,263.78374465,127.05,127.03,28.33756915]
[1743217157985,255.90904465,127.05,127.03,28.33756915]
[1743217158185,33.67109139,127.04,127.03,50.76293326]
[1743217159487,82.78199729,127.06,127.03,58.64293326]
[1743217159689,125.31373883,127.08,127.05,22.42536411]
[1743217159885,1.76450739,127.06,127.05,22.42536411]
[1743217160089,125.31373883,127.1,127.05,60.84536411]
[1743217160279,125.31373883,127.1,127.05,52.96536411]
[1743217160484,7.8729,127.08,127.05,30.54]
[1743217160687,125.31373883,127.1,127.05,30.54]
[1743217160883,0.05041111,127.08,127.05,30.60048193]
[1743217161794,7.92331111,127.08,127.05,30.60048193]
[1743217166697,7.8734,127.07,127.05,30.60048193]
[1743217167200,7.92341111,127.08,127.05,30.60048193]
[1743217170897,0.05041111,127.08,127.05,30.60048193]
[1743217171407,0.05041111,127.08,127.05,53.02584604]
[1743217171898,52.44445212,127.12,127.05,53.02584604]
[1743217172095,2.1357,127.15,127.05,53.02584604]
[1743217172096,125.31373883,127.08,127.07,22.42536411]
[1743217172502,114.09653883,127.08,127.07,22.42536411]
[1743217172698,208.85623138,127.1,127.07,22.42536411]
[1743217173002,208.91197628,127.1,127.08,289.94]
[1743217173601,0.0557449,127.1,127.08,289.94]
[1743217174805,0.0557449,127.1,127.09,30.42]
[1743217175805,312.93936487,127.16,127.09,448.32536411]
[1743217175993,312.93936487,127.16,127.13,22.42536411]
[1743217176192,47.8140112,127.16,127.15,22.42536411]
[1743217176497,5.22094252,127.16,127.15,52.92536411]
[1743217176697,208.85623138,127.17,127.1,1.57356412]
[1743217176892,0.05187348,127.15,127.12,0.05462982]
[1743217177102,0.05187348,127.15,127.13,31.3]
[1743217180404,0.05187348,127.15,127.12,0.05462982]
[1743217180604,0.05187348,127.15,127.13,31.2]
[1743217183708,0.05187348,127.15,127.14,31.1]
[1743217185110,7.92037348,127.15,127.14,31.1]
[1743217185807,7.92037348,127.15,127.12,0.05462982]
[1743217186008,7.92037348,127.15,127.13,31.02]
[1743217187109,14.08101315,127.15,127.1,1.57356412]
[1743217187306,14.02913967,127.13,127.05,14.02913967]
[1743217187607,14.02913967,127.11,127.07,31.0]
[1743217188018,7.8741,127.06,127.04,259.56]
[1743217188207,7.8741,127.06,127.05,31.0]
[1743217188409,7.92792733,127.06,127.05,31.0]
[1743217188912,0.05382733,127.06,127.05,31.0]
[1743217193411,0.05382733,127.06,127.0,0.1]
[1743217193607,0.05382733,127.06,127.0,22.57397751]
[1743217193904,7.8746,127.05,127.01,30.86]
[1743217194511,7.92812733,127.06,127.02,30.88]
[1743217194713,0.05382733,127.06,127.02,30.93307581]
[1743217195317,7.8751,127.05,127.02,30.93307581]
[1743217197320,7.92812733,127.06,127.02,30.93307581]
[1743217198417,0.05382733,127.06,127.02,53.40705332]
[1743217200108,0.05382733,127.06,127.02,30.93307581]
[1743217200515,7.92842733,127.06,127.02,30.93307581]
[1743217200715,0.05382733,127.06,127.02,30.93307581]
[1743217201315,0.05382733,127.06,127.03,30.72]
[1743217201511,7.92782733,127.06,127.03,30.72]
[1743217202319,7.8747,127.05,127.03,30.72]
[1743217202521,0.05382733,127.06,127.03,30.72]
[1743217202819,7.92812733,127.06,127.03,30.72]
[1743217203321,0.05382733,127.06,127.03,30.72]
[1743217204117,0.05382733,127.06,127.04,22.47397751]
[1743217204316,3.988,127.11,127.04,22.47397751]
[1743217204517,3.988,127.11,127.06,22.47397751]
[1743217204716,3.988,127.11,127.07,30.7]
[1743217205016,63.61344318,127.19,127.08,22.47397751]
[1743217205212,4.2257,127.17,127.08,22.47397751]
[1743217205419,7.92476691,127.14,127.11,0.05812042]
[1743217205717,0.05516691,127.14,127.12,30.68]
[1743217206422,7.8697,127.13,127.12,30.68]
[1743217206924,7.92436691,127.14,127.12,30.68]
[1743217207121,0.05516691,127.14,127.12,30.68]
[1743217209317,22.47397751,127.13,127.04,22.47397751]
[1743217209522,22.47397751,127.13,127.02,259.64]
[1743217209523,22.47397751,127.13,127.05,30.66]
[1743217210420,7.8725,127.09,127.08,0.05565676]
[1743217210618,0.05432773,127.1,127.08,30.71565676]
[1743217213828,7.92592773,127.1,127.08,30.71565676]
[1743217214326,7.8722,127.09,127.08,0.05565676]
[1743217214526,7.8722,127.09,127.08,30.67565676]
[1743217214927,7.8722,127.09,127.08,0.05565676]
[1743217215517,7.92612773,127.1,127.08,0.05565676]
[1743217215724,0.05432773,127.1,127.08,0.05565676]
[1743217216821,7.8722,127.09,127.08,0.05565676]
[1743217218027,0.05432773,127.1,127.08,0.05565676]
[1743217219724,0.05432773,127.1,127.09,14.03701587]
[1743217220432,0.05432773,127.1,127.08,0.05565676]
[1743217221329,0.05432773,127.1,127.09,30.5]